fUST/lending_fUST_20260429
["ID","MTS","AMOUNT","RATE_DAILY","PERIOD"]
[421320213,1777431042661,-391.9012,0.00019077,2]
[421320214,1777431042672,-391.9012,0.00019077,2]
[421320215,1777431042682,-391.9012,0.00019077,2]
[421320216,1777431042692,-391.9012,0.00019077,2]
[421320217,1777431042702,-151.0,0.00019077,2]
[421320218,1777431042713,-154.954195,0.00019077,2]
[421320219,1777431042725,-151.0,0.00019077,2]
[421320220,1777431042736,-414.643208,0.00019077,2]
[421320221,1777431042746,-414.643208,0.00019077,2]
[421320222,1777431042757,-414.643208,0.00019077,2]
[421320223,1777431042768,-414.643208,0.00019077,2]
[421320224,1777431042780,-890.093883,0.00019077,2]
[421320225,1777431042790,-890.093883,0.00019077,2]
[421320226,1777431042801,-890.093883,0.00019077,2]
[421320227,1777431042811,-890.093883,0.00019077,2]
[421320228,1777431042822,-151.0,0.00019077,2]
[421320229,1777431042832,-173.106338,0.00019077,2]
[421320230,1777431042842,-173.106338,0.00019077,2]
[421320231,1777431042853,-173.106338,0.00019077,2]
[421320232,1777431042864,-173.106338,0.00019077,2]
[421320233,1777431042875,-204.130319,0.00019077,2]
[421320234,1777431042886,-204.130319,0.00019077,2]
[421320235,1777431042896,-204.130319,0.00019077,2]
[421320236,1777431042907,-204.130319,0.00019077,2]
[421320237,1777431042918,-151.0,0.00019077,2]
[421320238,1777431042928,-151.0,0.00019077,2]
[421320239,1777431042939,-151.0,0.00019077,2]
[421320240,1777431042949,-555.346426,0.00019077,2]
[421320241,1777431042959,-555.346426,0.00019077,2]
[421320242,1777431042969,-555.346426,0.00019077,2]
[421320243,1777431042980,-555.346426,0.00019077,2]
[421320244,1777431042990,-151.0,0.00019077,2]
[421320245,1777431043000,-151.0,0.00019077,2]
[421320246,1777431043011,-227.604635,0.00019077,2]
[421320247,1777431043022,-663.923322,0.00019077,2]
[421320248,1777431043032,-663.923322,0.00019077,2]
[421320249,1777431043043,-663.923322,0.00019077,2]
[421320250,1777431043054,-663.923322,0.00019077,2]
[421320251,1777431043064,-315.380961,0.00019077,2]
[421320252,1777431043074,-315.380961,0.00019077,2]
[421320253,1777431043085,-315.380961,0.00019077,2]
[421320254,1777431043095,-315.380961,0.00019077,2]
[421320255,1777431043106,-156.0,0.00019078,2]
[421320256,1777431043116,-156.0,0.00019078,2]
[421320257,1777431043127,-156.0,0.00019078,2]
[421320258,1777431043137,-156.0,0.00019078,2]
[421320259,1777431043148,-156.0,0.00019078,2]
[421320260,1777431043158,-649.0,0.00019078,2]
[421320261,1777431043169,-156.47224368,0.00019078,2]
[421320262,1777431043179,-649.0,0.00019078,2]
[421320263,1777431043191,-649.0,0.00019078,2]
[421320264,1777431043201,-649.0,0.00019078,2]
[421320265,1777431043211,-649.0,0.00019078,2]
[421320266,1777431043222,-611.78461771,0.00019078,2]
[421320267,1777431043232,-341.0,0.00019078,2]
[421320268,1777431043243,-341.0,0.00019078,2]
[421320269,1777431043254,-341.0,0.00019078,2]
[421320270,1777431043264,-341.0,0.00019078,2]
[421320271,1777431043275,-341.0,0.00019078,2]
[421320272,1777431043285,-341.0,0.00019078,2]
[421320273,1777431043296,-159.46723148,0.00019078,2]
[421320274,1777431043306,-151.0,0.00019078,2]
[421320275,1777431043317,-151.0,0.00019078,2]
[421320276,1777431043328,-156.75,0.00019079,2]
[421320277,1777431043338,-1233.7663739,0.0001908,2]
[421320278,1777431043348,-151.0,0.000191,2]
[421320279,1777431043359,-151.0,0.000191,2]
[421320280,1777431043369,-151.0,0.000191,2]
[421320281,1777431043380,-352.48711298,0.00019117,2]
[421320282,1777431043390,-600.0,0.00019153,2]
[421320283,1777431043400,-25179.0639565,0.00019155,2]
[421320284,1777431043411,-151.0,0.00019155,2]
[421320285,1777431043421,-151.0,0.00019155,2]
[421320286,1777431043431,-527.473983,0.00019155,2]
[421320287,1777431043442,-527.473983,0.00019155,2]
[421320288,1777431043452,-527.473983,0.00019155,2]
[421320289,1777431043463,-527.473983,0.00019155,2]
[421320290,1777431043473,-279.536107,0.00019155,2]
[421320291,1777431043484,-279.536107,0.00019155,2]
[421320292,1777431043494,-279.536107,0.00019155,2]
[421320293,1777431043504,-279.536107,0.00019155,2]
[421320294,1777431043515,-151.0,0.00019155,2]
[421320295,1777431043527,-151.0,0.00019155,2]
[421320296,1777431043537,-465.105616,0.00019155,2]
[421320297,1777431043547,-465.105616,0.00019155,2]
[421320298,1777431043558,-465.105616,0.00019155,2]
[421320299,1777431043568,-465.105616,0.00019155,2]
[421320300,1777431043579,-663.923322,0.00019155,2]
[421320301,1777431043590,-663.923322,0.00019155,2]
[421320302,1777431043601,-663.923322,0.00019155,2]
[421320303,1777431043612,-663.923322,0.00019155,2]
[421320304,1777431043623,-151.0,0.00019155,2]
[421320305,1777431043635,-151.0,0.00019155,2]
[421320306,1777431043646,-315.380961,0.00019155,2]
[421320307,1777431043656,-315.380961,0.00019155,2]
[421320308,1777431043667,-315.380961,0.00019155,2]
[421320309,1777431043677,-315.380961,0.00019155,2]
[421320310,1777431043687,-501.14,0.00019177,2]
[421320311,1777431043699,-555.346426,0.00019177,2]
[421320312,1777431043709,-555.346426,0.00019177,2]
[421320313,1777431043720,-555.346426,0.00019177,2]
[421320314,1777431043730,-555.346426,0.00019177,2]
[421320315,1777431043740,-151.0,0.00019177,2]
[421320316,1777431043750,-151.0,0.00019177,2]
[421320317,1777431043761,-1724.98094752,0.00019178,2]
[421320318,1777431043772,-4166.66,0.00019178,2]
[421320319,1777431043782,-4166.66,0.00019178,2]
[421320320,1777431043792,-4166.66,0.00019178,2]
[421320321,1777431043802,-4166.66,0.00019178,2]
[421320322,1777431043812,-4166.66,0.00019178,2]
[421320323,1777431043822,-4166.66,0.00019178,2]
[421320324,1777431043833,-4166.66,0.00019178,2]
[421320325,1777431043843,-4166.66,0.00019178,2]
[421320326,1777431043854,-4166.66,0.00019178,2]
[421320327,1777431043865,-4166.82,0.00019178,2]
[421320328,1777431043878,-2000.0,0.00019178,2]
[421320329,1777431043889,-2000.0,0.00019178,2]
[421320330,1777431043900,-2000.0,0.00019178,2]
[421320331,1777431043912,-2000.0,0.00019178,2]
[421320332,1777431043923,-2000.0,0.00019178,2]
[421320333,1777431043934,-2000.0,0.00019178,2]
[421320334,1777431043946,-2000.0,0.00019178,2]
[421320335,1777431043956,-2000.0,0.00019178,2]
[421320336,1777431043967,-2000.0,0.00019178,2]
[421320337,1777431043978,-2000.0,0.00019178,2]
[421320338,1777431043989,-2000.0,0.00019178,2]
[421320339,1777431044000,-2000.0,0.00019178,2]
[421320340,1777431044012,-2000.0,0.00019178,2]
[421320341,1777431044023,-1400.5311633,0.00019178,2]
[421320342,1777431044034,-166.0,0.00019178,2]
[421320343,1777431044044,-166.0,0.00019178,2]
[421320344,1777431044055,-167.0,0.00019178,2]
[421320345,1777431044066,-264.3528362,0.00019178,2]
[421320346,1777431044077,-649.0,0.00019178,2]
[421320347,1777431044087,-649.0,0.00019178,2]
[421320348,1777431044098,-649.0,0.00019178,2]
[421320349,1777431044304,-649.0,0.00019178,2]
[421320350,1777431044319,-649.0,0.00019178,2]
[421320351,1777431044330,-341.0,0.00019178,2]
[421320352,1777431044340,-649.0,0.00019178,2]
[421320353,1777431044351,-649.0,0.00019178,2]
[421320354,1777431044362,-342.57501831,0.00019178,2]
[421320355,1777431044372,-649.0,0.00019178,2]
[421320356,1777431044384,-166.0,0.00019178,2]
[421320357,1777431044394,-649.0,0.00019178,2]
[421320358,1777431044407,-166.0,0.00019178,2]
[421320359,1777431044418,-649.0,0.00019178,2]
[421320360,1777431044429,-649.0,0.00019178,2]
[421320361,1777431044441,-179.0,0.00019178,2]
[421320362,1777431044453,-649.0,0.00019178,2]
[421320363,1777431044465,-166.0,0.00019178,2]
[421320364,1777431044476,-179.0,0.00019178,2]
[421320365,1777431044487,-649.0,0.00019178,2]
[421320366,1777431044499,-181.23562419,0.00019178,2]
[421320367,1777431044511,-649.0,0.00019178,2]
[421320368,1777431044521,-649.0,0.00019178,2]
[421320369,1777431044531,-649.0,0.00019178,2]
[421320370,1777431044541,-649.0,0.00019178,2]
[421320371,1777431044552,-649.0,0.00019178,2]
[421320372,1777431044562,-649.0,0.00019178,2]
[421320373,1777431044574,-649.0,0.00019178,2]
[421320374,1777431044584,-649.0,0.00019178,2]
[421320375,1777431044595,-151.0,0.00019178,2]
[421320376,1777431044605,-151.0,0.00019178,2]
[421320377,1777431044616,-649.0,0.00019178,2]
[421320378,1777431044627,-151.0,0.00019178,2]
[421320379,1777431044638,-649.0,0.00019178,2]
[421320380,1777431044648,-151.0,0.00019178,2]
[421320381,1777431044658,-649.0,0.00019178,2]
[421320382,1777431044669,-151.0,0.00019178,2]
[421320383,1777431044680,-649.0,0.00019178,2]
[421320384,1777431044691,-151.0,0.00019178,2]
[421320385,1777431044702,-649.0,0.00019178,2]
[421320386,1777431044713,-151.0,0.00019178,2]
[421320387,1777431044723,-649.0,0.00019178,2]
[421320388,1777431044734,-156.40573903,0.00019178,2]
[421320389,1777431044744,-649.0,0.00019178,2]
[421320390,1777431044754,-649.0,0.00019178,2]
[421320391,1777431044765,-649.0,0.00019178,2]
[421320392,1777431044775,-301.1296048,0.00019178,2]
[421320393,1777431044787,-649.0,0.00019178,2]
[421320394,1777431044797,-649.0,0.00019178,2]
[421320395,1777431044808,-649.0,0.00019178,2]
[421320396,1777431044819,-649.0,0.00019178,2]
[421320397,1777431044829,-649.0,0.00019178,2]
[421320398,1777431044839,-649.0,0.00019178,2]
[421320399,1777431044850,-649.0,0.00019178,2]
[421320400,1777431044861,-649.0,0.00019178,2]
[421320401,1777431044873,-649.0,0.00019178,2]
[421320402,1777431044884,-649.0,0.00019178,2]
[421320403,1777431044895,-649.0,0.00019178,2]
[421320404,1777431044906,-649.0,0.00019178,2]
[421320405,1777431044918,-649.0,0.00019178,2]
[421320406,1777431044929,-649.0,0.00019178,2]
[421320407,1777431044940,-649.0,0.00019178,2]
[421320408,1777431044950,-649.0,0.00019178,2]
[421320409,1777431044962,-649.0,0.00019178,2]
[421320410,1777431044972,-649.0,0.00019178,2]
[421320411,1777431044982,-360.02468747,0.00019178,2]
[421320412,1777431044992,-391.9012,0.00019178,2]
[421320413,1777431045002,-391.9012,0.00019178,2]
[421320414,1777431045013,-391.9012,0.00019178,2]
[421320415,1777431045023,-391.9012,0.00019178,2]
[421320416,1777431045032,-391.9012,0.00019178,2]
[421320417,1777431045042,-391.9012,0.00019178,2]
[421320418,1777431045053,-391.9012,0.00019178,2]
[421320419,1777431045063,-391.9012,0.00019178,2]
[421320420,1777431045075,-391.9012,0.00019178,2]
[421320421,1777431045086,-391.9012,0.00019178,2]
[421320422,1777431045096,-391.9012,0.00019178,2]
[421320423,1777431045108,-391.9012,0.00019178,2]
[421320424,1777431045119,-151.0,0.00019178,2]
[421320425,1777431045130,-151.0,0.00019178,2]
[421320426,1777431045141,-151.0,0.00019178,2]
[421320427,1777431045152,-151.0,0.00019178,2]
[421320428,1777431045162,-151.0,0.00019178,2]
[421320429,1777431045173,-151.0,0.00019178,2]
[421320430,1777431045183,-151.0,0.00019178,2]
[421320431,1777431045194,-151.0,0.00019178,2]
[421320432,1777431045204,-151.0,0.00019178,2]
[421320433,1777431045214,-151.0,0.00019178,2]
[421320434,1777431045225,-151.0,0.00019178,2]
[421320435,1777431045235,-151.0,0.00019178,2]
[421320436,1777431045247,-152.081951,0.00019178,2]
[421320437,1777431045258,-200.0,0.00019178,3]
[421320438,1777431045269,-200.0,0.00019178,3]
[421320439,1777431045279,-200.0,0.00019178,3]
[421320440,1777431045291,-200.0,0.00019178,3]
[421320441,1777431045301,-200.0,0.00019178,3]
[421320442,1777431045312,-200.0,0.00019178,3]
[421320443,1777431045323,-151.0,0.00019178,2]
[421320444,1777431045333,-152.652798,0.00019178,2]
[421320445,1777431045345,-414.643208,0.00019178,2]
[421320446,1777431045355,-414.643208,0.00019178,2]
[421320447,1777431045365,-414.643208,0.00019178,2]
[421320448,1777431045376,-414.643208,0.00019178,2]
[421320449,1777431045387,-414.643208,0.00019178,2]
[421320450,1777431045397,-414.643208,0.00019178,2]
[421320451,1777431045408,-414.643208,0.00019178,2]
[421320452,1777431045419,-414.643208,0.00019178,2]
[421320453,1777431045431,-414.643208,0.00019178,2]
[421320454,1777431045441,-414.643208,0.00019178,2]
[421320455,1777431045451,-414.643208,0.00019178,2]
[421320456,1777431045461,-414.643214,0.00019178,2]
[421320457,1777431045471,-890.093883,0.00019178,2]
[421320458,1777431045482,-890.093883,0.00019178,2]
[421320459,1777431045492,-890.093883,0.00019178,2]
[421320460,1777431045502,-890.093883,0.00019178,2]
[421320461,1777431045513,-890.093883,0.00019178,2]
[421320462,1777431045523,-890.093883,0.00019178,2]
[421320463,1777431045534,-890.093883,0.00019178,2]
[421320464,1777431045545,-890.093883,0.00019178,2]
[421320465,1777431045555,-890.093883,0.00019178,2]
[421320466,1777431045565,-890.093883,0.00019178,2]
[421320467,1777431045575,-890.093883,0.00019178,2]
[421320468,1777431045585,-890.093885,0.00019178,2]
[421320469,1777431045595,-151.0,0.00019178,2]
[421320470,1777431045605,-166.794588,0.00019178,2]
[421320471,1777431045615,-421.99,0.00019178,2]
[421320472,1777431045625,-173.106338,0.00019178,2]
[421320473,1777431045636,-173.106338,0.00019178,2]
[421320474,1777431045647,-173.106338,0.00019178,2]
[421320475,1777431045659,-173.106338,0.00019178,2]
[421320476,1777431045669,-173.106338,0.00019178,2]
[421320477,1777431045680,-173.106338,0.00019178,2]
[421320478,1777431045691,-173.106338,0.00019178,2]
[421320479,1777431045702,-173.106338,0.00019178,2]
[421320480,1777431045713,-173.106338,0.00019178,2]
[421320481,1777431045725,-173.106338,0.00019178,2]
[421320482,1777431045736,-173.106338,0.00019178,2]
[421320483,1777431045746,-173.106338,0.00019178,2]
[421320484,1777431045756,-173.106338,0.00019178,2]
[421320485,1777431045767,-173.106338,0.00019178,2]
[421320486,1777431045777,-173.106338,0.00019178,2]
[421320488,1777431045787,-173.106346,0.00019178,2]
[421320490,1777431045799,-204.130319,0.00019178,2]
[421320492,1777431045809,-204.130319,0.00019178,2]
[421320494,1777431045820,-204.130319,0.00019178,2]
[421320495,1777431045830,-204.130319,0.00019178,2]
[421320496,1777431045842,-204.130319,0.00019178,2]
[421320497,1777431045853,-204.130319,0.00019178,2]
[421320498,1777431045864,-204.130319,0.00019178,2]
[421320499,1777431045875,-204.130319,0.00019178,2]
[421320500,1777431045887,-204.130319,0.00019178,2]
[421320501,1777431045898,-204.130319,0.00019178,2]
[421320502,1777431045908,-204.130319,0.00019178,2]
[421320503,1777431045920,-204.130319,0.00019178,2]
[421320504,1777431045930,-204.130319,0.00019178,2]
[421320506,1777431045941,-204.130319,0.00019178,2]
[421320508,1777431045951,-204.130319,0.00019178,2]
[421320510,1777431045961,-151.0,0.00019178,2]
[421320511,1777431045971,-204.130322,0.00019178,2]
[421320512,1777431045981,-151.0,0.00019178,2]
[421320513,1777431045991,-151.0,0.00019178,2]
[421320514,1777431046001,-151.0,0.00019178,2]
[421320515,1777431046011,-151.0,0.00019178,2]
[421320516,1777431046022,-151.0,0.00019178,2]
[421320517,1777431046032,-151.0,0.00019178,2]
[421320518,1777431046042,-151.0,0.00019178,2]
[421320519,1777431046054,-151.0,0.00019178,2]
[421320520,1777431046064,-175.75867,0.00019178,2]
[421320521,1777431046074,-555.346426,0.00019178,2]
[421320522,1777431046085,-555.346426,0.00019178,2]
[421320523,1777431046096,-555.346426,0.00019178,2]
[421320524,1777431046107,-555.346426,0.00019178,2]
[421320525,1777431046118,-555.346426,0.00019178,2]
[421320526,1777431046130,-555.346426,0.00019178,2]
[421320527,1777431046140,-555.346426,0.00019178,2]
[421320528,1777431046152,-555.346427,0.00019178,2]
[421320529,1777431046163,-151.0,0.00019178,2]
[421320530,1777431046173,-151.0,0.00019178,2]
[421320531,1777431046185,-151.0,0.00019178,2]
[421320532,1777431046195,-151.0,0.00019178,2]
[421320533,1777431046207,-1000.0,0.00019178,2]
[421320534,1777431046218,-1000.0,0.00019178,2]
[421320535,1777431046229,-1000.0,0.00019178,2]
[421320536,1777431046239,-1002.30968307,0.00019178,2]
[421320537,1777431046251,-527.473983,0.00019178,2]
[421320538,1777431046262,-527.473983,0.00019178,2]
[421320539,1777431046275,-527.473983,0.00019178,2]
[421320540,1777431046286,-527.473983,0.00019178,2]
[421320541,1777431046298,-527.473983,0.00019178,2]
[421320542,1777431046311,-527.473983,0.00019178,2]
[421320543,1777431046323,-527.473983,0.00019178,2]
[421320544,1777431046336,-527.47398,0.00019178,2]
[421320545,1777431046350,-279.536107,0.00019178,2]
[421320546,1777431046363,-279.536107,0.00019178,2]
[421320547,1777431046374,-279.536107,0.00019178,2]
[421320548,1777431046385,-279.536107,0.00019178,2]
[421320549,1777431046397,-279.536107,0.00019178,2]
[421320550,1777431046407,-279.536107,0.00019178,2]
[421320551,1777431046418,-279.536107,0.00019178,2]
[421320552,1777431046429,-279.536102,0.00019178,2]
[421320553,1777431046441,-151.0,0.00019178,2]
[421320554,1777431046452,-151.0,0.00019178,2]
[421320555,1777431046463,-151.0,0.00019178,2]
[421320556,1777431046473,-151.0,0.00019178,2]
[421320557,1777431046484,-151.0,0.00019178,2]
[421320558,1777431046494,-254.103083,0.00019178,2]
[421320559,1777431046505,-465.105616,0.00019178,2]
[421320560,1777431046515,-465.105616,0.00019178,2]
[421320561,1777431046527,-465.105616,0.00019178,2]
[421320562,1777431046537,-465.105616,0.00019178,2]
[421320563,1777431046547,-465.105616,0.00019178,2]
[421320564,1777431046557,-465.105616,0.00019178,2]
[421320565,1777431046567,-465.105616,0.00019178,2]
[421320566,1777431046578,-465.105616,0.00019178,2]
[421320567,1777431046588,-465.105616,0.00019178,2]
[421320568,1777431046600,-465.105616,0.00019178,2]
[421320569,1777431046610,-465.105616,0.00019178,2]
[421320570,1777431046621,-465.105617,0.00019178,2]
[421320571,1777431046631,-663.923322,0.00019178,2]
[421320572,1777431046642,-663.923322,0.00019178,2]
[421320573,1777431046653,-663.923322,0.00019178,2]
[421320574,1777431046663,-663.923322,0.00019178,2]
[421320575,1777431046673,-663.923322,0.00019178,2]
[421320576,1777431046683,-663.923322,0.00019178,2]
[421320577,1777431046694,-663.923322,0.00019178,2]
[421320578,1777431046705,-663.923329,0.00019178,2]
[421320579,1777431046715,-151.0,0.00019178,2]
[421320580,1777431046725,-151.0,0.00019178,2]
[421320581,1777431046735,-151.0,0.00019178,2]
[421320582,1777431046745,-151.0,0.00019178,2]
[421320583,1777431046755,-1000.0,0.00019178,2]
[421320584,1777431046766,-1000.0,0.00019178,2]
[421320585,1777431046777,-1000.0,0.00019178,2]
[421320586,1777431046788,-1000.0,0.00019178,2]
[421320587,1777431046799,-1003.00414339,0.00019178,2]
[421320588,1777431046810,-315.380961,0.00019178,2]
[421320589,1777431046821,-315.380961,0.00019178,2]
[421320590,1777431046832,-315.380961,0.00019178,2]
[421320591,1777431046842,-315.380961,0.00019178,2]
[421320592,1777431046854,-315.380961,0.00019178,2]
[421320593,1777431046866,-315.380961,0.00019178,2]
[421320594,1777431046878,-315.380961,0.00019178,2]
[421320595,1777431046889,-315.380966,0.00019178,2]
[421320596,1777431046900,-1000.0,0.00019178,2]
[421320597,1777431046911,-151.0,0.00019178,2]
[421320598,1777431046921,-151.0,0.00019178,2]
[421320599,1777431046933,-151.0,0.00019178,2]
[421320600,1777431046943,-151.0,0.00019178,2]
[421320601,1777431046955,-151.0,0.00019178,2]
[421320602,1777431046966,-151.0,0.00019178,2]
[421320603,1777431046977,-151.0,0.00019178,2]
[421320604,1777431046987,-151.0,0.00019178,2]
[421320605,1777431046998,-151.0,0.00019178,2]
[421320606,1777431047009,-151.0,0.00019178,2]
[421320607,1777431047019,-151.0,0.00019178,2]
[421320608,1777431047029,-259.0,0.00019178,2]
[421320609,1777431047041,-172.181511,0.00019178,2]
[421320610,1777431047051,-172.181511,0.00019178,2]
[421320611,1777431047063,-172.181511,0.00019178,2]
[421320612,1777431047073,-172.181511,0.00019178,2]
[421320613,1777431047084,-172.181511,0.00019178,2]
[421320614,1777431047094,-172.181511,0.00019178,2]
[421320615,1777431047105,-172.181511,0.00019178,2]
[421320616,1777431047115,-172.181511,0.00019178,2]
[421320617,1777431047128,-172.181511,0.00019178,2]
[421320618,1777431047139,-172.181511,0.00019178,2]
[421320619,1777431047151,-172.181511,0.00019178,2]
[421320620,1777431047162,-172.181511,0.00019178,2]
[421320621,1777431047173,-172.181511,0.00019178,2]
[421320622,1777431047183,-172.181511,0.00019178,2]
[421320623,1777431047194,-172.181511,0.00019178,2]
[421320624,1777431047205,-172.181511,0.00019178,2]
[421320625,1777431047215,-172.181511,0.00019178,2]
[421320626,1777431047226,-172.181511,0.00019178,2]
[421320627,1777431047237,-172.181511,0.00019178,2]
[421320628,1777431047247,-172.181515,0.00019178,2]
[421320629,1777431047258,-1561.0,0.00019178,2]
[421320630,1777431047268,-151.0,0.000192,2]
[421320631,1777431047279,-151.0,0.000192,2]
[421320632,1777431047289,-151.0,0.000192,2]
[421320633,1777431047299,-793.0,0.000192,2]
[421320634,1777431047309,-260.79,0.00019222,2]
[421320635,1777431047320,-155.0,0.00019225,2]
[421320636,1777431047332,-151.0,0.0001925,2]
[421320637,1777431047342,-159.514864,0.0001925,2]
[421320638,1777431047353,-2225.825,0.0001925,2]
[421320639,1777431047363,-650.44,0.0001925,2]
[421320640,1777431047374,-1416.688,0.0001925,2]
[421320641,1777431047384,-150.0,0.0001925,2]
[421320642,1777431047394,-267.801,0.0001925,2]
[421320643,1777431047405,-151.0,0.000193,2]
[421320644,1777431047416,-151.0,0.000193,2]
[421320645,1777431047428,-151.0,0.000193,2]
[421320646,1777431047439,-200.0,0.00019307,120]
[421320647,1777431047450,-162.09897232,0.00019338,2]
[421320648,1777431047650,-155.0,0.00019384,2]
[421320649,1777431047661,-151.0,0.000194,2]
[421320650,1777431047672,-212.33,0.00019435,2]
[421320651,1777431047683,-215.55,0.00019435,2]
[421320652,1777431047694,-200.0,0.00019453,120]
[421320653,1777431047705,-3563.54693197,0.000195,3]
[421320654,1777431047716,-155.0,0.00019543,2]
[421320655,1777431047727,-352.48711298,0.00019556,2]
[421320656,1777431047737,-171.62400115,0.00019574,2]
[421320657,1777431047748,-200.0,0.00019579,120]
[421320658,1777431047759,-160.0,0.000196,2]
[421320659,1777431047769,-369.257953,0.000196,2]
[421320660,1777431047780,-578.515906,0.000196,2]
[421320661,1777431047793,-276.279752,0.000196,7]
[421320662,1777431047804,-324.21409211,0.00019631,2]
[421320663,1777431047815,-200.0,0.00019691,120]
[421320664,1777431047827,-155.0,0.00019702,2]
[421320665,1777431047839,-391.9012,0.00019721,2]
[421320666,1777431047849,-391.9012,0.00019721,2]
[421320667,1777431047859,-391.9012,0.00019721,2]
[421320668,1777431047871,-391.9012,0.00019721,2]
[421320669,1777431047882,-151.0,0.00019721,2]
[421320670,1777431047892,-151.0,0.00019721,2]
[421320671,1777431047903,-1574.6,0.00019726,2]
[421320672,1777431047913,-200.0,0.00019729,120]
[421320673,1777431047924,-474.37024454,0.000198,2]
[421320674,1777431047935,-451.64543725,0.000198,2]
[421320675,1777431047945,-155.0,0.0001986,2]
[421320676,1777431047956,-151.0,0.000199,2]
[421320677,1777431047967,-200.0,0.00019969,120]
[421320678,1777431047978,-500.0,0.00019973,2]
[421320679,1777431047988,-500.0,0.00019973,2]
[421320680,1777431047998,-150.0,0.00019973,2]
[421320681,1777431048009,-500.37611317,0.00019973,2]
[421320682,1777431048020,-500.0,0.00019973,2]
[421320683,1777431048030,-500.0,0.00019973,2]
[421320684,1777431048041,-407.52220509,0.00019973,2]
[421320685,1777431048051,-150.21621373,0.00019973,2]
[421320686,1777431048062,-500.0,0.00019973,2]
[421320687,1777431048073,-500.0,0.00019973,2]
[421320688,1777431048083,-500.0,0.00019973,2]
[421320689,1777431048094,-362.69021235,0.00019973,2]
[421320690,1777431048104,-500.20149389,0.00019973,2]
[421320691,1777431048115,-608.51300789,0.00019973,2]
[421320692,1777431048126,-500.34037358,0.00019973,2]
[421320693,1777431048137,-500.0,0.00019973,2]
[421320694,1777431048148,-502.44112603,0.00019973,2]
[421320695,1777431048158,-500.17889864,0.00019973,2]
[421320696,1777431048169,-500.44104358,0.00019973,2]
[421320697,1777431048180,-500.67495106,0.00019973,2]
[421320698,1777431048191,-213.36579267,0.00019973,2]
[421320699,1777431048202,-500.37304229,0.00019973,2]
[421320700,1777431048213,-194.15425207,0.00019973,2]
[421320701,1777431048224,-500.31099665,0.00019973,2]
[421320702,1777431048236,-150.12514334,0.00019973,2]
[421320703,1777431048247,-500.0,0.00019973,2]
[421320704,1777431048258,-220.28797268,0.00019973,2]
[421320705,1777431048269,-503.84738667,0.00019973,2]
[421320706,1777431048282,-151.0,0.00019973,7]
[421320707,1777431048292,-151.0,0.00019973,2]
[421320708,1777431048305,-313.13609074,0.00019975,2]
[421320709,1777431048315,-352.48711298,0.00019995,2]
[421320710,1777431048327,-142340.11770279,0.0002,2]
[421320711,1777431048338,-150.0,0.0002,2]
[421320712,1777431048349,-14867.01584514,0.0002,2]
[421320713,1777431048360,-375.72990474,0.0002,2]
[421320714,1777431048371,-204.98355305,0.0002,2]
[421320715,1777431048381,-1000.0,0.0002,2]
[421320716,1777431048394,-161.67806477,0.0002,2]
[421320717,1777431048405,-4217.98,0.0002,2]
[421320718,1777431048416,-1576.0,0.0002,10]
[421320719,1777431048428,-1000.0,0.0002,2]